[Event "27th OIBM 2024"]
[Site "Gmund am Tegernsee"]
[Date "2024.10.26"]
[Round "1.11"]
[White "Kaiser, Elmar"]
[Black "Naumann, Alexander"]
[Result "1/2-1/2"]
[ECO "C70"]
[WhiteElo "2094"]
[BlackElo "2487"]
[Annotator "TA"]
[PlyCount "129"]
[EventDate "2024.09.16"]
[EventType "swiss"]
[EventCountry "GER"]
[SourceTitle "playchess.com"]
[Source "ChessBase"]
[SourceQuality "1"]
[TimeControl "40/5400+30:1800+30"]

{[%evp 33,129,-19,-19,-17,-10,-37,-27,-53,-22,-63,29,45,60,0,0,11,7,3,150,142,155,131,146,151,495,365,389,245,222,232,234,236,242,246,245,218,888,880,1512,1405,864,146,179,160,271,271,272,127,143,143,108,27,27,27,27,8,8,8,8,8,8,8,8,8,34,34,34,34,65,77,207,19,19,19,19,19,19,19,19,19,19,19,19,19,19,0,0,0,0,0,0,0,0,0,0,0,0,0]} 1. e4 {[%emt 0:01:43]} e5 {[%emt 0:00:07]} 2. Nf3 {[%emt 0:00:07]} Nc6 {[%emt 0:00:06]} 3. Bb5 {[%emt 0:00:05]} a6 {[%emt 0:00:04]} 4. Ba4 {[%emt 0:00:10]} Bc5 {[%emt 0:00:09]} 5. O-O {[%emt 0:00:30]} Nge7 {[%emt 0:00:06]} 6. Nxe5 {[%emt 0:06:13] C70: Ruy Lopez: 3...a6 4 Ba4, Norwegian and Delayed Schliemann.} Nxe5 {[%emt 0:00:21]} 7. d4 {[%emt 0:00:05]} b5 {[%emt 0:01:32]} 8. Bb3 {[%emt 0:00:10]} Bxd4 {[%emt 0:01:20]} 9. Qxd4 {[%emt 0:00:07]} d6 {[%emt 0:03:31]} 10. c3 {[%emt 0:04:59]} c5 {[%emt 0:04:40] 10...0-0 is the hot move.} 11. Qe3 {[%emt 0:01:37]} O-O {[%emt 0:07:10]} 12. Qg3 {[%emt 0:06:20]} c4 {[%emt 0:05:36]} 13. Bc2 {[%emt 0:00:10]} f5 {[%emt 0:00:32]} 14. Bg5 {[%emt 0:13:34]} Qe8 {[%emt 0:01:29]} 15. Nd2 {[%emt 0:02:16]} N7g6 {[%emt 0:05:57]} 16. exf5 $146 {[%emt 0:00:46]} ({Predecessor:} 16. f4 Nd3 17. Bxd3 cxd3 18. Rae1 Qc6 19. h4 fxe4 20. h5 d5 21. hxg6 Qxg6 22. Nb3 {1-0 McShane,L (2674)-Matlakov,M (2688) EU-Cup Online Play-C rapid 2021 (2.3)}) 16... Bxf5 {[%emt 0:00:10]} 17. Bxf5 {[%emt 0:08:53]} Rxf5 {[%emt 0:00:32]} 18. a4 {[%emt 0:10:04]} Nd3 {[%emt 0:05:02]} 19. Be3 {[%emt 0:06:30]} Ngf4 {[%emt 0:09:45]} 20. Bxf4 {[%emt 0:06:54]} Rxf4 {[%emt 0:00:38]} 21. Nf3 {[%emt 0:03:25]} Qe4 {[%emt 0:10:55]} (21... bxa4 22. Ne1 Qe4 23. Nxd3 cxd3 24. Rae1 $11) (21... Rf6 $1 $15 22. Qg4 d5 (22... Nxb2 23. Rfe1 $11)) 22. axb5 $11 {[%emt 0:04:17]} Raf8 {[%emt 0:10:10]} 23. h3 {[%emt 0:01:46]} (23. Rxa6 $2 Rg4 24. Nd2 (24. Qxd6 Rxg2+ 25. Kh1 Rg6) 24... Qg6 25. Rxd6 (25. Qxd6 $2 Rxg2+ 26. Kh1 Rg1+ 27. Rxg1 Nxf2#) (25. Qh3 $2 Nf4 $19) 25... Rxg3 26. Rxg6 Rxg6 27. Nxc4 Rg5 $19) (23. Nd2 $14 {is more appropriate.} Qe2 24. bxa6 Qxd2 25. a7) 23... R4f6 $11 {[%emt 0:05:55]} (23... Nxb2 $2 24. bxa6 Nd3 25. Rfb1 $18) 24. bxa6 {[%emt 0:04:37]} Rg6 $1 {[%emt 0:00:25]} 25. Ng5 {[%emt 0:00:06]} Qd5 {[%emt 0:02:14]} (25... Qc6 $1 $11 {keeps the balance.}) 26. f4 $16 {[%emt 0:00:26]} h6 {[%emt 0:00:42] [#]} 27. Qf3 $1 {[%emt 0:00:25]} (27. a7 hxg5 28. b3 Nxf4 (28... gxf4 $2 29. Qxg6 Ne5 30. Qb1 $18) 29. Rxf4 gxf4 $16) 27... Qc5+ {[%emt 0:09:33]} (27... Nxf4 28. Qxd5+ Nxd5 29. Rxf8+ Kxf8 30. a7 $18) 28. Kh1 {[%emt 0:02:24]} d5 $2 {[%emt 0:00:21]} (28... hxg5 $16 {is tougher.} 29. a7 g4 (29... Rxf4 $2 {too greedy.} 30. a8=Q+ Kh7 31. Qh5+ Rh6 32. Qhe8 $18)) 29. a7 {[%emt 0:03:28]} Qc6 {[%emt 0:04:48]} 30. f5 {[%emt 0:01:17]} Rxg5 {[%emt 0:00:56]} (30... hxg5 $2 {perishes.} 31. fxg6 Nf4 32. g3 $18) 31. h4 {[%emt 0:00:21]} Ne5 {[%emt 0:01:04]} 32. Qe2 {[%emt 0:06:12]} Rg4 {[%emt 0:01:47]} 33. Qxe5 {[%emt 0:00:08]} Rxh4+ {[%emt 0:00:15]} 34. Kg1 {[%emt 0:00:03]} Re4 $2 {[%emt 0:01:28]} (34... Qc5+ 35. Rf2 Re4) 35. Qg3 $18 {[%emt 0:00:44]} Ra8 {[%emt 0:05:21]} 36. f6 {[%emt 0:02:54]} Qb6+ {[%emt 0:00:27]} 37. Qf2 $2 {[%emt 0:00:32]} (37. Rf2 $18 {[%csl Gf6][%cal Rg3g7] has better winning chances.} g5 38. f7+ Kg7 39. Kh2) 37... Qxf2+ {[%emt 0:01:45]} 38. Rxf2 {[%emt 0:00:07]} gxf6 {[%emt 0:01:12]} (38... Re6 $16 39. Rf5 Rd6 40. f7+ Kf8) 39. Rxf6 $18 {[%emt 0:00:16]} Re7 {[%emt 0:00:13]} 40. Rxh6 {[%emt 0:04:20]} (40. Rfa6 $18 {and White stays clearly on top.}) 40... Rexa7 {[%emt 0:00:48]} 41. Rxa7 {[%emt 0:30:26]} Rxa7 {[%emt 0:30:01] [#]} 42. Rb6 {[%emt 0:00:00]} (42. Rf6 $1 $16) 42... d4 $11 {[%emt 0:00:00]} 43. cxd4 {[%emt 0:00:00]} Rd7 {[%emt 0:00:00]} 44. Rg6+ {[%emt 0:00:00]} Kf7 {[%emt 0:00:00]} 45. Rg4 {[%emt 0:00:00]} Ke6 $1 {[%emt 0:00:00]} 46. Rf4 {[%emt 0:00:00]} Kd5 {[%emt 0:00:00]} 47. g4 {[%emt 0:00:00]} Rb7 {[%emt 0:00:00]} 48. Rf2 {[%emt 0:00:00]} Rg7 {[%emt 0:00:00]} 49. Rg2 {[%emt 0:00:00]} Kxd4 {[%emt 0:00:00]} 50. Kf2 {[%emt 0:00:00]} Ke5 {[%emt 0:00:18]} 51. Kf3 {[%emt 0:00:00]} Rc7 {[%emt 0:05:00]} (51... Rb7 $16 52. Re2+ Kf6) 52. g5 $2 {[%emt 0:00:00]} (52. Re2+ $18 Kf6 53. Rc2) 52... c3 $11 {[%emt 0:00:44]} 53. bxc3 {[%emt 0:00:00]} Kf5 $1 {[%emt 0:00:04]} 54. Rc2 {[%emt 0:00:00]} Kxg5 {[%emt 0:00:33]} 55. Ke4 {[%emt 0:00:55]} Kf6 $1 {[%emt 0:00:01]} 56. Kd5 {[%emt 0:00:38]} Ke7 {[%emt 0:00:01]} 57. c4 {[%emt 0:00:16]} Kd8 {[%emt 0:00:34]} 58. c5 {[%emt 0:04:40]} Kc8 {[%emt 0:01:33]} 59. c6 {[%emt 0:01:51]} Rh7 {[%emt 0:00:21]} 60. Ra2 {[%emt 0:01:40]} Rh1 {[%emt 0:00:31]} 61. Ra8+ {[%emt 0:00:19]} Kc7 {[%emt 0:00:01]} 62. Ra7+ {[%emt 0:00:09]} Kc8 {[%emt 0:00:25]} 63. Ra8+ {[%emt 0:01:29]} Kc7 {[%emt 0:00:08]} 64. Ra7+ {[%emt 0:00:10]} Kc8 {[%emt 0:00:07]} 65. Ra8+ {[%emt 0:01:26]} 1/2-1/2

[Event "27th OIBM 2024"]
[Site "Gmund am Tegernsee"]
[Date "2024.10.26"]
[Round "1.12"]
[White "Deuer, Marius"]
[Black "Bossinger, Patrick"]
[Result "1-0"]
[ECO "A58"]
[WhiteElo "2477"]
[BlackElo "2093"]
[Annotator "TA"]
[PlyCount "105"]
[EventDate "2024.09.16"]
[EventType "swiss"]
[EventCountry "GER"]
[SourceTitle "playchess.com"]
[Source "ChessBase"]
[SourceQuality "1"]
[TimeControl "40/5400+30:1800+30"]

{[%evp 9,105,27,43,44,55,43,39,35,39,39,38,36,50,47,49,52,58,39,39,-3,0,-15,-4,-12,18,23,16,21,20,9,43,16,14,16,16,23,67,72,75,71,186,188,199,172,183,182,286,288,375,384,385,371,485,510,525,520,525,520,548,540,549,527,550,525,564,558,572,577,556,554,654,657,643,660,662,654,759,755,862,869,2051,29976,29976,29977,29977,29978,29978,29979,29983,29985,29985,29986,29986,29987,29987,29988,29987,29987]} 1. d4 {[%emt 0:00:02]} Nf6 {[%emt 0:00:19]} 2. c4 {[%emt 0:00:05][%cal Bc2c4,Bc4b5,Bb5a6][%mdl 32]} c5 {[%emt 0:00:22]} 3. d5 {[%emt 0:00:16]} b5 {[%emt 0:00:16]} 4. cxb5 {[%emt 0:01:08]} a6 {[%emt 0:00:17]} 5. bxa6 {[%emt 0:00:20]} g6 {[%emt 0:00:19]} 6. Nc3 {[%emt 0:00:50]} Bg7 {[%emt 0:00:22][%cal Oe8g8]} 7. Nf3 {[%emt 0:01:51]} O-O {[%emt 0:00:35][%cal Oe7e6]} 8. g3 {[%emt 0:00:33] White is slightly better.} e6 {[%emt 0:06:49]} 9. Bg2 {[%emt 0:11:05]} Rxa6 {[%emt 0:05:10]} 10. O-O {[%emt 0:03:18]} Bb7 {[%emt 0:02:46]} 11. e4 {[%emt 0:04:15]} exd5 {[%emt 0:08:31]} 12. exd5 {[%emt 0:01:40]} d6 {[%emt 0:00:59] Dodges Ne5} 13. Nd2 {[%emt 0:08:45]} Nbd7 {[%emt 0:05:41]} 14. Nde4 {[%emt 0:03:51]} Nxe4 {[%emt 0:06:26]} 15. Nxe4 {[%emt 0:01:13]} Qa8 {[%emt 0:01:57]} 16. Nc3 {[%emt 0:10:44]} Re8 {[%emt 0:06:25][%mdl 1024] Black has compensation.} 17. Bf4 {[%emt 0:05:35][%cal Bc1f4,Bf4d2,Bd2c3][%mdl 32]} Rb6 {[%emt 0:05:59]} 18. Qd2 {[%emt 0:02:36]} Ne5 {[%emt 0:05:51]} 19. b3 {[%emt 0:00:13] Repels Nc4} Qa5 {[%emt 0:10:24][%cal Oe5f3]} 20. Na4 {[%emt 0:04:04]} Qxd2 {[%emt 0:31:02]} 21. Bxd2 {[%emt 0:00:04]} Ra6 {[%emt 0:00:00]} 22. Rfe1 {[%emt 0:03:12] Threatens to win with f4.} Kf8 {[%emt 0:00:00]} 23. Bc3 {[%emt 0:00:41] Black must now prevent f4.} Rea8 {[%emt 0:00:00] White stays focused until the end.} 24. Rad1 {[%emt 0:05:39]} Rxa4 {[%emt 0:00:00]} (24... Bc8 $16) 25. bxa4 $18 {[%emt 0:01:33]} Nf3+ {[%emt 0:00:00]} 26. Bxf3 {[%emt 0:00:07]} Bxc3 {[%emt 0:00:00]} 27. Re3 {[%emt 0:03:24]} Ba5 {[%emt 0:00:00]} (27... Bd4 {is a better defense.}) 28. Be2 {[%emt 0:03:52]} Ba6 {[%emt 0:00:00]} 29. Bxa6 {[%emt 0:02:17]} Rxa6 {[%emt 0:00:00][%mdl 4096] Endgame. KRR-KRB} 30. Rb1 {[%emt 0:00:03] Rb7 would now be deadly.} c4 {[%emt 0:00:00][%cal Bc5c4,Bc4c3][%mdl 32]} 31. Re4 {[%emt 0:02:09]} c3 {[%emt 0:00:00]} 32. Rc4 {[%emt 0:00:04]} Ra7 {[%emt 0:00:00]} 33. Kf1 {[%emt 0:00:57]} Ke7 {[%emt 0:00:00]} 34. Ke2 {[%emt 0:03:20]} Kf6 {[%emt 0:00:00]} 35. Kd3 {[%emt 0:00:39]} Ke5 {[%emt 0:00:00]} 36. Rb5 {[%emt 0:00:05]} g5 {[%emt 0:00:00]} 37. Rc8 {[%emt 0:00:42]} Kf5 {[%emt 0:01:25]} 38. Rc6 {[%emt 0:04:22]} Ke5 {[%emt 0:00:35]} 39. f3 {[%emt 0:00:12]} h5 {[%emt 0:00:37] [#]} 40. f4+ $1 {[%emt 0:03:09]} gxf4 {[%emt 0:00:17]} 41. gxf4+ {[%emt 0:30:06]} Kxf4 {[%emt 0:30:24]} 42. Rxd6 {[%emt 0:00:05]} f5 {[%emt 0:00:54][%cal Bf7f5,Bf5f4][%mdl 32]} 43. Re6 {[%emt 0:04:55]} Bd8 {[%emt 0:01:08]} 44. Kxc3 {[%emt 0:00:36]} Rxa4 {[%emt 0:00:09]} 45. Rb4+ {[%emt 0:00:06]} Rxb4 {[%emt 0:00:09] White mates.} 46. Kxb4 {[%emt 0:00:05] KR-KB} Kf3 {[%emt 0:00:32]} 47. a4 {[%emt 0:00:56]} f4 {[%emt 0:00:11]} 48. a5 {[%emt 0:00:30]} Kg2 {[%emt 0:00:12]} 49. a6 {[%emt 0:00:08]} f3 {[%emt 0:00:07]} 50. a7 {[%emt 0:00:04]} f2 {[%emt 0:00:12]} 51. Re2 {[%emt 0:00:03]} (51. a8=B $2 {loses.} f1=Q (51... f1=R 52. Re2+ Rf2 53. d6+ Kg1 54. Rxf2 $16) 52. d6+ Kxh2 $19) 51... Kf3 {[%emt 0:00:30] [#]} 52. Rxf2+ $3 {[%emt 0:00:07][%mdl 512]} Kxf2 {[%emt 0:00:05]} 53. a8=Q {[%emt 0:00:05] Weighted Error Value: White=0.05 (flawless) /Black=0.20 (precise) .  Mistake:       	---       	Black=2      Inaccurate:     	White=2     	Black=5      OK:         	White=17    	Black=16     Best:        	White=1     	Black=3} ({Worse is} 53. a8=B Be7+ 54. Kc3 Bd6 $11) 1-0

[Event "27th OIBM 2024"]
[Site "Gmund am Tegernsee"]
[Date "2024.10.26"]
[Round "1.13"]
[White "Isbilir, Levin"]
[Black "Costa, Leonardo"]
[Result "0-1"]
[ECO "D41"]
[WhiteElo "2092"]
[BlackElo "2472"]
[Annotator "TA"]
[PlyCount "94"]
[EventDate "2024.09.16"]
[EventType "swiss"]
[EventCountry "GER"]
[SourceTitle "playchess.com"]
[Source "ChessBase"]
[SourceQuality "1"]
[TimeControl "40/5400+30:1800+30"]

{[%evp 18,94,16,10,5,12,7,9,12,12,45,-58,-68,-77,-66,-118,-114,-102,-90,-115,-108,-122,-91,-97,-86,-109,-92,-107,-95,-116,-51,-23,-21,-36,-28,-40,-16,-54,-50,-110,-114,-258,-254,-234,-225,-276,-278,-252,-278,-277,-259,-377,-382,-300,-292,-429,-402,-718,-588,-891,-784,-904,-853,-935,-931,-897,-860,-1831,-1829,-1793,-1772,-1681,-1626,-1417,-1417,-1243,-1299,-1223,-1158]} 1. e4 {[%emt 0:00:04]} c6 {[%emt 0:00:05]} 2. c4 {[%emt 0:00:23]} d5 {[%emt 0:00:05]} 3. cxd5 {[%emt 0:00:05]} cxd5 {[%emt 0:00:04]} 4. exd5 {[%emt 0:00:06]} Nf6 {[%emt 0:00:03]} 5. Nc3 {[%emt 0:00:11]} Nxd5 {[%emt 0:00:48]} 6. Bc4 {[%emt 0:00:17]} e6 {[%emt 0:02:02]} 7. Nf3 {[%emt 0:00:31]} Nc6 {[%emt 0:02:17]} 8. O-O {[%emt 0:02:03]} Be7 {[%emt 0:00:09]} 9. d4 {[%emt 0:00:10]} O-O {[%emt 0:00:04]} 10. Qe2 {[%emt 0:01:51]} Bf6 {[%emt 0:07:58]} 11. Rd1 {[%emt 0:00:55]} b6 {[%emt 0:00:24]} 12. Ne5 {[%emt 0:08:10]} Nxc3 {[%emt 0:17:42] The position is equal.} 13. bxc3 {[%emt 0:00:30]} Bb7 {[%emt 0:00:08] [#]} 14. Nxf7 {[%emt 0:49:56]} Rxf7 $15 {[%emt 0:00:51]} 15. Qxe6 {[%emt 0:05:55]} Qe7 {[%emt 0:10:39]} 16. Qxf7+ {[%emt 0:01:05]} ({Better is} 16. Bf4 $15) 16... Qxf7 $17 {[%emt 0:00:05]} 17. Bxf7+ {[%emt 0:00:05]} Kxf7 {[%emt 0:00:02]} 18. Bf4 {[%emt 0:00:47]} Rc8 {[%emt 0:02:44][%mdl 1024] Black has strong compensation.} 19. Rac1 {[%emt 0:04:14]} g5 {[%emt 0:03:19]} 20. Bg3 {[%emt 0:03:51]} h5 {[%emt 0:00:20]} 21. h3 {[%emt 0:07:32]} h4 {[%emt 0:00:14]} 22. Bh2 {[%emt 0:01:09]} Na5 {[%emt 0:00:28]} 23. f4 {[%emt 0:06:52] [#]} Rg8 {[%emt 0:12:47] Black has more active pieces.} ({Black should try} 23... Kg6 $1 $17 24. d5 Nc4 (24... Bxc3 25. d6 $11) (24... Rxc3 25. Rxc3 Bxc3 26. d6 $14)) 24. fxg5 $15 {[%emt 0:03:33]} Rxg5 {[%emt 0:00:04]} 25. Rc2 {[%emt 0:00:23]} Nc4 {[%emt 0:00:04]} 26. Bf4 {[%emt 0:00:29] Repels Ne3} Rg6 {[%emt 0:02:58]} 27. Rf2 {[%emt 0:01:01]} Ke6 {[%emt 0:00:04]} 28. Re1+ {[%emt 0:01:29]} (28. Re2+ $15 Kd7 29. d5) 28... Kd7 $17 {[%emt 0:00:04]} 29. Be5 {[%emt 0:00:46] Now White is beyond hope.} (29. Rd1 $17) 29... Nxe5 $19 {[%emt 0:01:25]} 30. dxe5 {[%emt 0:00:05]} Be7 {[%emt 0:00:03] This pair of bishops is nice.} 31. e6+ {[%emt 0:00:56]} Rxe6 {[%emt 0:00:30]} 32. Rxe6 {[%emt 0:00:33]} Kxe6 {[%emt 0:00:05]} 33. Re2+ {[%emt 0:00:31]} Kd7 {[%emt 0:01:23]} 34. Rd2+ {[%emt 0:00:26]} (34. Kf2 $142) 34... Kc6 {[%emt 0:00:03]} 35. Kf2 {[%emt 0:00:15]} Bd6 {[%emt 0:01:35] ...Kc5 is the strong threat.} 36. Kf3 {[%emt 0:00:50]} (36. Ke3 $142) 36... Kc5+ {[%emt 0:00:10]} 37. Kg4 {[%emt 0:00:29]} (37. Ke3 $142) 37... Bg3 {[%emt 0:00:04] aiming for ...b5. Black is clearly winning.} 38. Kg5 {[%emt 0:00:30]} b5 {[%emt 0:01:40]} 39. Rd7 {[%emt 0:00:27]} Kb6 {[%emt 0:00:03]} 40. Rd2 {[%emt 0:00:32]} a5 {[%emt 0:00:07]} 41. Rb2 {[%emt 0:03:01]} Kc5 {[%emt 0:03:43]} 42. a4 {[%emt 0:01:17]} Bc6 {[%emt 0:00:04]} 43. axb5 {[%emt 0:01:17]} Bxb5 {[%emt 0:00:04]} 44. Kf5 {[%emt 0:00:54]} Bc6 {[%emt 0:00:04]} 45. Ra2 {[%emt 0:02:05]} a4 {[%emt 0:00:24]} 46. Ra3 {[%emt 0:00:17]} Kb5 {[%emt 0:00:38]} 47. Kg4 {[%emt 0:00:49]} Bxg2 {[%emt 0:00:28] Weighted Error Value: White=0.56/Black=0.06 (flawless) .  Mistake:       	White=7     	Black=1      Inaccurate:     	White=2     	Black=1      OK:         	White=8     	Black=10     Best:        	White=1     	Black=2} 0-1

[Event "27th OIBM 2024"]
[Site "Gmund am Tegernsee"]
[Date "2024.10.26"]
[Round "1.14"]
[White "Schneider, Ilja"]
[Black "Martin Fernandez, Rodrigo"]
[Result "1-0"]
[ECO "B23"]
[WhiteElo "2449"]
[BlackElo "2092"]
[Annotator "TA"]
[PlyCount "87"]
[EventDate "2024.09.16"]
[EventType "swiss"]
[EventCountry "GER"]
[SourceTitle "playchess.com"]
[Source "ChessBase"]
[SourceQuality "1"]
[TimeControl "40/5400+30:1800+30"]

{[%evp 10,87,10,21,9,10,14,29,37,32,53,52,67,64,44,59,54,31,42,48,39,4,1,0,0,-6,18,-29,0,-51,-61,-52,-30,-43,-27,-79,-42,-61,-30,-79,-45,-150,7,0,0,0,0,0,0,0,0,-40,31,23,27,25,31,10,43,0,0,-7,25,59,212,198,216,215,183,183,196,191,181,147,363,377,371,346,29997,29998]} 1. e4 {[%emt 0:00:15]} c5 {[%emt 0:02:34]} 2. Nc3 {[%emt 0:00:25]} Nc6 {[%emt 0:00:13]} 3. Bb5 {[%emt 0:00:20]} Nd4 {[%emt 0:00:15]} 4. Nf3 {[%emt 0:00:11]} Nxb5 {[%emt 0:00:11]} 5. Nxb5 {[%emt 0:00:07]} d6 {[%emt 0:01:15]} 6. d4 {[%emt 0:00:56]} cxd4 {[%emt 0:05:55]} 7. Qxd4 {[%emt 0:00:10][%cal Od4c4]} Bd7 {[%emt 0:02:11]} 8. Nc3 {[%emt 0:04:17]} (8. Nxa7 $2 {too greedy.} Qa5+ 9. b4 Qxa7 $19) 8... Bc6 {[%emt 0:06:10] White has an edge.} 9. O-O {[%emt 0:05:15]} e5 {[%emt 0:05:26]} 10. Qd3 {[%emt 0:06:54]} h6 {[%emt 0:00:46]} 11. Rd1 {[%emt 0:11:58] White is more active.} Nf6 {[%emt 0:00:48]} 12. b3 {[%emt 0:02:28]} Be7 {[%emt 0:05:33][%cal Ob7b5]} 13. a4 {[%emt 0:02:42]} Qd7 {[%emt 0:09:39]} 14. Ba3 {[%emt 0:07:04]} Rd8 {[%emt 0:09:00]} 15. Qe3 {[%emt 0:11:18] Nxe5 is the strong threat.} Qe6 {[%emt 0:05:15]} 16. Rd3 {[%emt 0:13:53][%cal Oa1d1]} ({Much worse is} 16. Qxa7 Nxe4 17. Nxe4 Bxe4 $17) 16... O-O {[%emt 0:03:05]} 17. Rad1 {[%emt 0:00:42][%cal Oc3d5]} a6 {[%emt 0:06:55]} 18. h3 {[%emt 0:00:59]} (18. Nd5 {should be considered.} Bxd5 19. exd5) 18... Rfe8 {[%emt 0:03:49]} 19. Nd5 {[%emt 0:11:54]} (19. Qe2 $11) 19... Bxd5 $15 {[%emt 0:01:00]} 20. exd5 {[%emt 0:00:02]} Qd7 {[%emt 0:01:33]} 21. Nd2 {[%emt 0:02:07]} Nh5 {[%emt 0:01:54] Strongly threatening ...Nf4.} 22. Nc4 {[%emt 0:05:24]} (22. Rc3 $11 {keeps the balance.}) 22... Nf4 {[%emt 0:04:28]} 23. Rc3 $1 {[%emt 0:00:49]} Qf5 {[%emt 0:02:14]} 24. Kh1 {[%emt 0:04:17]} (24. Qe1 $11 {is more appropriate.}) 24... Qg6 {[%emt 0:02:28]} 25. Qg3 {[%emt 0:01:10]} ({White has to play} 25. Qf3 $1 $15) 25... Qxg3 $2 {[%emt 0:02:02]} (25... Bg5 $17 {...Ne2 would now be deadly.} 26. Re1 Nxd5) 26. Rxg3 $11 {[%emt 0:02:58]} b5 {[%emt 0:07:45]} 27. Na5 {[%emt 0:00:03]} Rc8 {[%emt 0:00:24]} 28. c4 {[%emt 0:00:23]} Ne2 {[%emt 0:01:06]} 29. Re3 {[%emt 0:02:39]} Nd4 {[%emt 0:00:15] aiming for ...Nc2.} 30. Bb2 {[%emt 0:01:04]} bxc4 {[%emt 0:03:18]} (30... bxa4 $15 31. b4 Rb8 (31... Nc2 32. Re2 $16)) 31. Nxc4 $14 {[%emt 0:00:40]} Nf5 {[%emt 0:03:03]} 32. Rf3 $36 {[%emt 0:00:41][%mdl 2048] White has good play.} g6 {[%emt 0:00:46]} 33. g4 {[%emt 0:00:24]} Nh4 {[%emt 0:00:40]} 34. Rc3 {[%emt 0:00:15]} f5 {[%emt 0:00:51]} 35. Rdc1 {[%emt 0:00:58]} Rb8 {[%emt 0:01:13]} 36. Ba3 {[%emt 0:00:09]} Red8 $2 {[%emt 0:02:23]} ({Black should play} 36... Rbd8 $14) 37. Nxe5 $18 {[%emt 0:00:15] Black must now prevent Nc6.} Bg5 {[%emt 0:00:12][%cal Og5c1] [#]} 38. Nc6 $1 {[%emt 0:00:21][%csl LRb8,LRd8]} Bxc1 {[%emt 0:00:32]} 39. Bxc1 {[%emt 0:00:01]} g5 {[%emt 0:01:35]} 40. f4 {[%emt 0:02:35]} fxg4 {[%emt 0:00:46][%cal Oh6h5]} 41. fxg5 {[%emt 0:01:42]} gxh3 {[%emt 0:07:22]} (41... h5 $16) 42. Rxh3 {[%emt 0:02:05]} Nf5 {[%emt 0:00:48]} 43. Rf3 {[%emt 0:01:07]} Nh4 {[%emt 0:00:56] [#]} (43... Re8 $18) 44. Ne7+ $1 {[%emt 0:00:11] Weighted Error Value: White=0.18 (very precise) /Black=0.47.  Loses game:     	---       	Black=1      Mistake:       	White=5     	Black=4      Inaccurate:     	White=3     	Black=5      OK:         	White=11    	Black=17     Best:        	---       	Black=2      Strong:       	White=3     	---} 1-0

[Event "27th OIBM 2024"]
[Site "Gmund am Tegernsee"]
[Date "2024.10.26"]
[Round "1.15"]
[White "Kottmair, Toni"]
[Black "Baenziger, Fabian"]
[Result "1/2-1/2"]
[ECO "D47"]
[WhiteElo "2090"]
[BlackElo "2434"]
[Annotator "RC"]
[PlyCount "84"]
[EventDate "2024.09.16"]
[EventType "swiss"]
[EventCountry "GER"]
[SourceTitle "playchess.com"]
[Source "ChessBase"]
[SourceQuality "1"]
[TimeControl "40/5400+30:1800+30"]

1. d4 {[%emt 0:00:01]} Nf6 {[%emt 0:00:34]} 2. c4 {[%emt 0:00:06]} e6 {[%emt 0:00:10]} 3. Nf3 {[%emt 0:00:04]} d5 {[%emt 0:01:09]} 4. Nc3 {[%emt 0:00:20]} c6 {[%emt 0:00:57]} 5. e3 {[%emt 0:05:42]} Nbd7 {[%emt 0:00:48]} 6. Bd3 {[%emt 0:00:55]} dxc4 {[%emt 0:00:44]} 7. Bxc4 {[%emt 0:00:05]} b5 {[%emt 0:00:10]} 8. Bd3 {[%emt 0:04:16]} Bd6 {[%emt 0:00:31]} 9. Ne4 {[%emt 0:15:28]} Nxe4 {[%emt 0:02:35]} 10. Bxe4 {[%emt 0:00:01]} Bb7 {[%emt 0:00:23]} 11. O-O {[%emt 0:01:22]} O-O {[%emt 0:01:42]} 12. b3 {[%emt 0:09:01]} Rc8 {[%emt 0:06:49]} 13. Bb2 {[%emt 0:06:11]} Qb6 {[%emt 0:04:38]} 14. Rc1 {[%emt 0:03:39]} Rfd8 {[%emt 0:07:40]} 15. Qe2 {[%emt 0:06:07]} c5 {[%emt 0:08:20]} 16. Bxb7 {[%emt 0:13:17]} Qxb7 {[%emt 0:00:05]} 17. dxc5 {[%emt 0:02:17]} Nxc5 {[%emt 0:00:25]} 18. Rfd1 {[%emt 0:01:11]} Bf8 {[%emt 0:11:00]} 19. h3 {[%emt 0:04:53]} a6 {[%emt 0:01:55]} 20. Rd4 {[%emt 0:09:34]} Ne4 {[%emt 0:08:58]} 21. Rxc8 {[%emt 0:01:50]} Rxc8 {[%emt 0:00:05]} 22. Qd3 {[%emt 0:00:55]} Nc5 {[%emt 0:00:42]} 23. Qb1 {[%emt 0:01:27]} h6 {[%emt 0:02:46]} 24. Ne5 {[%emt 0:01:27]} Qc7 {[%emt 0:08:27]} 25. Rd1 {[%emt 0:02:48]} Bd6 {[%emt 0:04:18]} 26. Nf3 {[%emt 0:01:00]} Rd8 {[%emt 0:00:51]} 27. Qc2 {[%emt 0:02:42]} Bf8 {[%emt 0:01:18]} 28. Rxd8 {[%emt 0:00:24]} Qxd8 {[%emt 0:00:05]} 29. Bd4 {[%emt 0:00:17]} Qd5 {[%emt 0:00:23]} 30. Kf1 {[%emt 0:03:59]} f6 {[%emt 0:03:35]} 31. Nd2 {[%emt 0:01:32]} Kf7 {[%emt 0:00:57]} 32. Ke2 {[%emt 0:01:06]} Bd6 {[%emt 0:00:55]} 33. Bxc5 {[%emt 0:01:59]} Bxc5 {[%emt 0:00:05]} 34. Qe4 {[%emt 0:00:04]} Qd7 {[%emt 0:00:36]} 35. Qd3 {[%emt 0:00:27]} Qc6 {[%emt 0:00:31]} 36. Qe4 {[%emt 0:00:05]} Qb6 {[%emt 0:00:54]} 37. Qd3 {[%emt 0:00:14]} Be7 {[%emt 0:00:30]} 38. Qc2 {[%emt 0:00:36]} Qb7 {[%emt 0:01:57]} 39. Kf1 {[%emt 0:01:23]} Qd5 {[%emt 0:01:11]} 40. Nf3 {[%emt 0:00:54]} f5 {[%emt 0:01:20]} 41. Ke2 {[%emt 0:03:40]} Bc5 {[%emt 0:09:05]} 42. Qd3 {[%emt 0:05:29]} Qxd3+ {[%emt 0:00:51]} 1/2-1/2